bitfinex/quotes_ETHUSD_20240729
["timestamp","ask_amount","ask_price","bid_price","bid_amount"]
[1722248398440,1.54531745,3394.4,3394.1,2.35702]
[1722248398908,1.5451863,3394.4,3394.1,2.35702]
[1722248399713,1.5451863,3394.4,3393.9,2.35711]
[1722248400413,1.5451863,3394.4,3393.8,7.29]
[1722248400616,2.6101863,3394.2,3393.8,7.29]
[1722248400876,1.5451863,3393.9,3393.8,7.29]
[1722248401163,1.065,3394.0,3393.6,19.8809]
[1722248401329,1.54561573,3393.8,3393.6,19.8809]
[1722248401718,1.54561573,3393.9,3393.6,22.23827]
[1722248401943,1.54545927,3393.8,3393.6,19.8809]
[1722248402148,1.54545927,3393.9,3393.6,19.8809]
[1722248403016,1.54551348,3393.8,3393.6,19.8809]
[1722248403212,1.54551348,3393.9,3393.6,19.8809]
[1722248403525,1.54551348,3393.8,3393.6,19.8809]
[1722248404251,1.54541046,3393.8,3393.6,19.8809]
[1722248404459,1.54517712,3393.9,3393.6,19.8809]
[1722248404619,1.54517712,3393.8,3393.6,19.8809]
[1722248404817,1.54517712,3393.8,3393.5,2.35744]
[1722248405246,1.54517712,3393.9,3393.5,2.35744]
[1722248405456,1.54517712,3393.8,3393.5,2.35744]
[1722248405756,1.54517712,3393.9,3393.5,2.35744]
[1722248407264,3.81437712,3393.9,3393.3,2.35757]
[1722248407468,1.54517712,3393.8,3393.4,2.35749]
[1722248407767,2.2692,3393.9,3393.4,2.35749]
[1722248407976,1.54572185,3393.8,3393.4,2.35749]
[1722248408566,1.54572185,3393.8,3393.2,2.35765]
[1722248408740,1.54572185,3393.8,3393.1,7.29]
[1722248408741,1.54572185,3393.4,3393.1,7.29]
[1722248409073,1.54572185,3393.4,3392.9,22.2387]
[1722248409074,4.87992185,3393.4,3392.9,22.2387]
[1722248409224,3.81492185,3393.4,3392.9,22.2387]
[1722248409423,3.81492185,3393.4,3393.0,2.35779]
[1722248410039,1.54572185,3393.4,3393.1,2.3577]
[1722248410464,1.54572185,3393.4,3392.9,22.2387]
[1722248410746,1.54572185,3393.4,3393.0,2.35776]
[1722248410954,1.54561097,3393.4,3393.0,2.35776]
[1722248411427,0.30845405,3393.5,3393.0,2.35776]
[1722248411635,1.54529649,3393.4,3393.0,2.35776]
[1722248412355,1.85375054,3393.5,3393.0,2.35776]
[1722248412556,1.54513958,3393.4,3393.0,2.35776]
[1722248413237,1.85359363,3393.5,3393.0,2.35776]
[1722248413678,1.85319027,3393.5,3393.0,2.35776]
[1722248414192,1.85327698,3393.5,3393.0,2.35776]
[1722248414476,1.85327698,3393.5,3393.1,2.35771]
[1722248415079,1.85327698,3393.5,3393.2,2.35763]
[1722248415379,1.85327698,3393.5,3393.3,2.35754]
[1722248415582,0.30845405,3393.5,3393.4,2.35751]
[1722248415889,1.54482293,3393.8,3393.7,2.3573]
[1722248416040,1.85324709,3394.0,3393.8,2.35723]
[1722248416238,0.30842416,3394.0,3393.8,2.35723]
[1722248416979,0.30842416,3394.0,3393.6,2.35737]
[1722248416980,0.30842416,3394.0,3393.9,2.35717]
[1722248420446,0.30842416,3394.0,3393.6,2.35732]
[1722248420649,0.30842416,3394.0,3393.7,2.3573]
[1722248420981,0.30842416,3394.0,3393.5,2.35743]
[1722248421186,1.85301645,3394.0,3393.5,2.35743]
[1722248421345,1.85292597,3394.0,3393.5,2.35743]
[1722248421680,1.54450181,3393.9,3393.5,2.35743]
[1722248422480,0.30842416,3394.0,3393.5,2.35743]
[1722248422481,1.85292597,3394.0,3393.5,2.35743]
[1722248422984,1.54450181,3393.9,3393.5,2.35743]
[1722248423344,1.54389207,3393.9,3393.6,2.35737]
[1722248423569,0.30842416,3394.0,3393.6,2.35737]
[1722248423570,1.85231623,3394.0,3393.6,2.35737]
[1722248424004,0.30842416,3394.0,3393.7,2.3573]
[1722248424146,1.85232801,3394.0,3393.7,2.3573]
[1722248424344,0.30842416,3394.0,3393.7,2.3573]
[1722248426379,1.85232801,3394.0,3393.7,2.3573]
[1722248427388,1.85232801,3394.0,3393.8,2.35721]
[1722248427389,1.8524306,3394.0,3393.8,2.35721]
[1722248427586,0.30842416,3394.0,3393.9,2.35717]
[1722248428455,0.30842416,3394.0,3393.9,4.71434]
[1722248429598,1.54400644,3394.4,3394.1,2.35698]
[1722248429979,1.54400644,3394.4,3393.9,4.71428]
[1722248430191,1.54400644,3394.4,3394.0,2.35707]
[1722248430361,1.54400644,3394.4,3393.9,2.35711]
[1722248430556,1.54400644,3394.4,3393.5,4.7148]
[1722248430557,1.065,3394.3,3393.5,4.7148]
[1722248430893,1.54453171,3394.1,3393.5,2.35739]
[1722248431197,1.54455166,3394.0,3393.5,2.35739]
[1722248431789,1.54455166,3394.0,3393.7,2.3573]
[1722248432366,1.54455166,3394.0,3393.5,2.35739]
[1722248432569,1.54455166,3394.0,3393.6,2.35733]
[1722248432768,1.54455166,3393.8,3393.5,2.35739]
[1722248433915,1.54465336,3393.8,3393.5,2.35739]
[1722248434693,1.54465336,3393.9,3393.6,2.35733]
[1722248434870,2.2567,3394.1,3393.6,2.35733]
[1722248434871,1.54465336,3393.8,3393.6,2.35733]
[1722248435096,1.54465336,3393.9,3393.7,2.3573]
[1722248435389,1.54465336,3394.0,3393.7,2.3573]
[1722248435692,1.54465336,3394.1,3393.9,2.35717]
[1722248436127,1.85358403,3394.5,3393.9,2.35717]
[1722248436128,1.54465336,3394.2,3393.9,2.35717]
[1722248437096,1.54466817,3394.2,3393.9,2.35717]
[1722248437416,1.54466817,3394.1,3393.9,2.35717]
[1722248438281,1.54466817,3394.1,3394.0,2.3571]
[1722248438481,1.54466817,3394.2,3394.0,2.3571]
[1722248438681,1.54466817,3394.1,3394.0,2.3571]
[1722248438902,1.8536018,3394.4,3394.0,2.3571]
[1722248439062,1.54481914,3394.1,3394.0,2.3571]
[1722248439266,1.54481914,3394.1,3393.8,2.35719]
[1722248439577,1.54481914,3394.1,3393.9,2.35715]
[1722248440005,1.54481914,3394.0,3393.9,2.35715]
[1722248440307,0.30840253,3394.6,3393.9,2.35715]
[1722248440502,1.54490215,3394.1,3393.9,2.35715]
[1722248440864,1.065,3394.5,3393.9,2.35715]
[1722248441068,1.54495117,3394.1,3393.9,2.35715]
[1722248442775,2.4772,3394.1,3393.5,2.35739]
[1722248442970,1.54501856,3393.9,3393.5,2.35739]
[1722248443170,1.54501611,3393.9,3393.5,2.35739]
[1722248443595,1.54501611,3393.8,3393.3,9.64753]
[1722248443901,1.54509552,3393.8,3393.3,9.64753]
[1722248444104,1.54509552,3393.8,3393.4,2.35751]
[1722248444472,1.54509552,3393.7,3393.4,2.35751]
[1722248446268,1.54509552,3393.7,3393.3,9.64758]
[1722248446763,1.54509552,3393.7,3393.3,7.29]
[1722248447011,2.3523,3393.6,3393.3,7.29]
[1722248447166,4.20645334,3393.6,3393.3,7.29]
[1722248447366,1.85415334,3393.5,3393.3,7.29]
[1722248449498,4.20645334,3393.6,3393.0,2.35779]
[1722248449809,1.54471775,3393.3,3393.0,2.35779]
[1722248450312,1.54471775,3393.4,3393.0,2.35779]
[1722248451115,1.54464064,3393.4,3393.0,2.35779]
[1722248452996,1.5444978,3393.3,3393.0,2.35779]
[1722248453335,1.5444978,3393.4,3393.0,2.35779]
[1722248453642,2.3523,3393.6,3393.0,2.35779]
[1722248453811,1.54440598,3393.3,3393.0,2.35779]
[1722248455433,1.54440598,3393.3,3393.0,2.935857]
[1722248455640,1.54440598,3393.3,3393.1,2.35772]
[1722248455820,1.85328717,3393.7,3393.0,2.935857]
[1722248455821,1.54440598,3393.4,3393.2,2.35763]
[1722248456927,2.64243595,3393.9,3393.2,2.35763]
[1722248457092,1.54433,3393.4,3393.2,2.35763]
[1722248457291,1.54433,3393.4,3393.0,4.055667]
[1722248457498,1.54433,3393.4,3393.1,2.35771]
[1722248457698,1.54433,3393.3,3393.1,2.35771]
[1722248458011,7.16170795,3393.9,3393.1,2.35771]
[1722248458012,1.54433,3393.4,3393.1,2.35771]
[1722248458722,1.54433,3393.3,3393.1,2.35771]
[1722248459417,1.54433,3393.3,3393.2,2.35765]
[1722248459619,1.54433,3393.4,3393.3,2.35758]
[1722248459943,1.54433,3393.4,3393.2,2.35762]
[1722248460361,1.54442164,3393.4,3393.0,7.706127]
[1722248460546,1.54442164,3393.4,3393.1,2.35771]
[1722248460846,3.70743595,3393.9,3393.2,2.35758]
[1722248461034,1.54418667,3393.4,3393.3,2.35758]
[1722248461233,1.54418667,3393.5,3393.4,2.35751]
[1722248461443,1.54418667,3393.6,3393.5,2.35744]
[1722248461858,1.54418667,3393.8,3393.5,2.960267]
[1722248462150,0.30843595,3393.9,3393.8,2.35723]
[1722248462510,0.30843595,3393.9,3393.6,2.35736]
[1722248462795,0.30843595,3393.9,3393.7,2.3573]
[1722248463116,0.30843595,3393.9,3393.5,5.317667]
[1722248463314,0.30843595,3393.9,3393.7,2.3573]
[1722248463315,1.85257513,3393.9,3393.7,2.3573]
[1722248464254,1.85257513,3393.9,3393.6,2.35737]
[1722248465119,4.24127513,3393.9,3393.5,2.3574]
[1722248465445,1.54413918,3393.8,3393.5,2.3574]
[1722248465823,1.5440286,3393.7,3393.2,7.29]
[1722248466067,1.5440286,3393.4,3393.1,2.35771]
[1722248466358,1.5440286,3393.3,3393.0,2.35779]
[1722248466643,1.5440286,3393.3,3392.9,2.35786]
[1722248467157,1.5440286,3393.2,3392.8,9.64792]
[1722248467647,1.5440286,3393.2,3393.0,2.35778]
[1722248467953,2.16131161,3393.5,3393.0,2.35778]
[1722248467954,1.5440286,3393.3,3393.0,2.35778]
[1722248468517,1.5440286,3393.3,3393.1,2.3577]
[1722248468718,1.5440286,3393.4,3393.1,2.3577]
[1722248468920,1.54351387,3393.4,3393.2,2.3576]
[1722248469236,1.85199116,3393.5,3393.3,2.35757]
[1722248469846,1.85199116,3393.5,3393.1,2.3577]
[1722248470050,1.85199116,3393.5,3393.3,2.35753]
[1722248470051,1.54351387,3393.4,3393.3,2.35753]
[1722248470363,1.85199116,3393.5,3393.3,2.35753]
[1722248470939,1.54351387,3393.4,3393.3,2.35753]
[1722248471140,1.85199116,3393.5,3393.3,2.35753]
[1722248472182,0.30847729,3393.5,3393.3,2.35753]
[1722248472363,1.8519305,3393.5,3393.3,2.35753]
[1722248472732,1.85196531,3393.5,3393.3,2.35753]
[1722248474526,1.85196531,3393.5,3393.1,2.3577]
[1722248474862,1.85196531,3393.5,3392.9,2.35781]
[1722248474863,1.54366437,3393.4,3392.9,2.35781]
[1722248475066,0.67889238,3393.5,3393.0,2.35775]
[1722248475067,1.54366437,3393.3,3393.0,2.35775]
[1722248475361,0.30847729,3393.5,3393.1,2.35767]
[1722248475543,1.54376516,3393.4,3393.1,0.05894051]
[1722248475738,0.30847729,3393.5,3393.1,0.05894051]
[1722248475739,1.85224245,3393.5,3393.3,2.35753]
[1722248476758,1.85224245,3393.5,3393.3,2.35753]
[1722248477536,1.85224245,3393.5,3393.4,2.35751]
[1722248477915,0.30847729,3393.5,3393.4,2.35751]
[1722248479081,0.30847729,3393.5,3393.4,4.71502]
[1722248479288,0.30847729,3393.5,3393.4,5.186535]
[1722248479694,1.54414003,3393.7,3393.6,2.35737]
[1722248480259,3.91944003,3393.7,3393.5,2.35743]
[1722248480593,4.22826803,3393.7,3393.0,2.35774]
[1722248480811,1.5440677,3393.4,3393.0,2.35774]
[1722248481700,1.5440677,3393.4,3393.1,2.35771]
[1722248481913,4.22826803,3393.7,3393.1,2.35771]
[1722248481914,2.3753,3393.7,3393.1,2.35771]
[1722248482221,1.5440907,3393.4,3393.1,2.35771]
[1722248482422,5.13354702,3393.7,3393.1,2.35771]
[1722248482423,3.28063817,3393.7,3393.1,2.35771]
[1722248482716,1.54421057,3393.4,3393.1,2.35771]
[1722248483221,1.54421057,3393.3,3393.1,2.35771]
[1722248484425,1.54421057,3393.3,3392.9,4.8231]
[1722248484725,1.54461763,3393.3,3393.0,2.35778]
[1722248485300,1.54461763,3393.3,3392.9,4.82315]
[1722248485607,1.54461763,3393.3,3393.0,2.35778]
[1722248485919,1.54461763,3393.3,3393.1,2.3577]
[1722248486120,1.54461763,3393.3,3393.2,2.35765]
[1722248487624,1.54461763,3393.3,3392.8,7.29]
[1722248487790,1.54461763,3393.3,3393.0,2.35777]
[1722248488120,4.33374115,3393.6,3393.0,2.35776]
[1722248488121,1.54461763,3393.2,3393.0,2.35776]
[1722248488423,1.54461763,3393.2,3393.1,2.35772]
[1722248488629,1.54555505,3393.2,3393.1,2.35772]
[1722248490020,1.54555505,3393.3,3393.2,2.35765]
[1722248490690,1.85466606,3393.7,3393.3,2.35755]
[1722248490890,1.85466606,3393.6,3393.3,2.35755]
[1722248491802,2.4398,3393.9,3393.2,2.35764]
[1722248492028,1.54593051,3393.3,3393.2,2.35764]
[1722248492328,0.6171361,3393.8,3393.1,2.35771]
[1722248492329,1.85514926,3393.5,3393.1,2.35771]
[1722248492497,1.85513532,3393.5,3393.2,2.35764]
[1722248493289,1.85513532,3393.4,3393.2,2.35764]
[1722248493493,1.85513532,3393.4,3393.1,2.35772]
[1722248493940,1.85513532,3393.4,3393.1,2.35765]
[1722248494428,1.85513532,3393.5,3393.1,2.35765]
[1722248494627,1.85513532,3393.5,3393.0,2.35778]
[1722248494829,1.54597404,3393.1,3393.0,2.35778]
[1722248495232,1.54597081,3393.1,3393.0,2.35778]
[1722248496642,1.54597081,3393.1,3393.0,4.71557]
[1722248496841,1.54597081,3393.2,3393.1,2.35772]
[1722248497044,1.85516498,3393.5,3393.2,2.35765]
[1722248498356,4.79697,3393.9,3393.2,2.35765]
[1722248498656,1.8552184,3393.5,3393.3,2.35758]
[1722248498854,1.8552184,3393.6,3393.4,2.35751]
[1722248499061,1.8552184,3393.7,3393.5,2.35744]
[1722248499263,1.8552184,3393.8,3393.6,4.71474]
[1722248499433,1.54626942,3393.7,3393.6,4.71474]
[1722248499628,1.54626942,3393.8,3393.7,2.3573]
[1722248499825,0.30845102,3394.0,3393.8,4.71446]
[1722248500028,1.85458588,3394.0,3393.9,2.35717]
[1722248500370,0.30845102,3394.0,3393.9,2.35717]
[1722248500556,1.85427354,3394.0,3393.9,2.35717]
[1722248501451,0.30845102,3394.0,3393.9,2.35717]
[1722248501783,1.85407116,3394.0,3393.9,2.35717]
[1722248502127,1.85407116,3394.0,3393.9,4.71434]
[1722248502326,1.85405418,3394.0,3393.9,4.71434]
[1722248502855,1.54560316,3394.0,3393.9,4.71434]
[1722248503724,1.54560316,3394.1,3394.0,2.3571]
[1722248504168,1.85472379,3394.3,3394.1,2.35702]
[1722248504377,2.43372199,3394.4,3394.1,2.35702]
[1722248505042,2.43305718,3394.4,3394.1,2.35702]
[1722248505557,2.43305718,3394.4,3394.2,2.35695]
[1722248505736,2.16249659,3394.5,3394.2,1.066]
[1722248505943,0.30843761,3394.5,3394.4,4.71364]
[1722248506277,1.85348044,3394.5,3394.4,4.71364]
[1722248506441,0.30843761,3394.5,3394.4,4.71364]
[1722248506642,0.30843761,3394.5,3394.4,2.35682]
[1722248506843,1.85348044,3394.5,3394.4,2.35682]
[1722248507170,1.85348044,3394.5,3394.3,2.35688]
[1722248507171,0.30843761,3394.5,3394.3,2.35688]
[1722248507349,0.30843761,3394.5,3394.4,2.35682]
[1722248507737,1.85343771,3394.5,3394.4,2.35682]
[1722248508145,0.30843761,3394.5,3394.4,2.35682]
[1722248508345,1.85345808,3394.5,3394.4,2.35682]
[1722248510376,1.85345808,3394.5,3394.2,2.35695]
[1722248510377,0.30843761,3394.5,3394.2,2.35695]
[1722248510569,1.85345808,3394.5,3394.2,2.35695]
[1722248511558,1.85251964,3394.5,3394.2,2.35695]
[1722248511757,1.85251964,3394.5,3394.3,2.35689]
[1722248511963,0.30843761,3394.5,3394.4,5.77964]
[1722248512173,0.30843761,3394.5,3394.4,5.83855122]
[1722248512451,1.54404787,3395.1,3394.7,2.35656]
[1722248512682,0.30846359,3395.0,3394.7,2.35656]
[1722248512899,0.30846359,3395.0,3394.6,0.05891069]
[1722248512900,0.30846359,3395.0,3394.8,2.35654]
[1722248513083,0.30846359,3395.0,3394.6,4.7133]
[1722248513284,0.30846359,3395.0,3394.7,2.35661]
[1722248514178,0.30846359,3395.0,3394.4,2.35679]
[1722248514373,0.30846359,3395.0,3394.6,2.35668]
[1722248514553,2.61678091,3395.0,3394.6,2.35668]
[1722248514751,2.61643691,3395.0,3394.7,2.35661]
[1722248514955,0.30846359,3395.0,3394.7,2.35661]
[1722248516602,0.30846359,3395.0,3394.9,2.35647]
[1722248516966,0.30846359,3395.0,3394.9,3.42247]
[1722248517280,5.4224,3395.7,3394.9,3.42247]
[1722248517281,3.96535687,3395.7,3394.9,3.42247]
[1722248517478,0.30848646,3395.2,3395.0,0.05890343]
[1722248517861,2.4224,3395.7,3395.0,0.05890343]
[1722248518069,0.30850359,3395.5,3395.0,0.05890343]
[1722248518277,0.30850359,3395.5,3395.1,2.35628]
[1722248518589,0.30850359,3395.5,3395.2,2.35624]
[1722248519394,0.30850359,3395.5,3395.4,2.35612]
[1722248523782,6.89494536,3396.3,3395.6,2.35595]
[1722248524095,0.30848289,3396.1,3395.6,2.35595]
[1722248524468,0.30848289,3396.1,3395.8,2.35583]
[1722248524673,0.30848289,3396.1,3396.0,2.35571]
[1722248525090,0.30848289,3396.1,3396.0,4.77030601]
[1722248525268,2.3925,3396.9,3396.1,2.35559]
[1722248525596,0.30843545,3396.5,3396.1,2.35559]
[1722248526474,0.30843545,3396.5,3396.0,2.41459601]
[1722248526774,0.30843545,3396.5,3396.2,2.35556]
[1722248528372,0.30843545,3396.5,3396.3,2.3555]
[1722248528603,0.30843545,3396.5,3396.4,2.35543]
[1722248529198,0.30843545,3396.5,3396.4,4.71086]
[1722248529518,2.4326,3397.3,3396.7,2.35521]
[1722248529797,0.30840375,3397.0,3396.8,2.35515]
[1722248531888,0.30840375,3397.0,3396.9,2.35508]
[1722248532920,0.30840375,3397.0,3396.7,2.35518]
[1722248533114,0.30840375,3397.0,3396.5,2.4558]
[1722248533115,0.30840375,3397.0,3396.5,2.35532]
[1722248533268,2.78070375,3397.0,3396.5,2.35532]
[1722248534067,2.78070375,3397.0,3396.3,9.64545]
[1722248535149,2.35509,3396.9,3396.3,7.29]
[1722248535547,2.78070375,3397.0,3396.3,7.29]
[1722248535852,2.78070375,3397.0,3396.4,2.35543]
[1722248537045,2.78070375,3397.0,3396.0,19.41]
[1722248537246,2.78070375,3397.0,3396.3,2.35546]
[1722248537399,2.78070375,3397.0,3396.6,2.35526]
[1722248537609,0.30840375,3397.0,3396.5,2.35534]
[1722248538009,0.30840375,3397.0,3396.7,2.35518]
[1722248538664,0.30840375,3397.0,3396.8,2.35515]
[1722248538866,0.30840375,3397.0,3396.9,2.35508]
[1722248541420,0.30840375,3397.0,3396.7,2.35517]
[1722248544021,0.30840375,3397.0,3396.8,2.35515]
[1722248546068,0.30840375,3397.0,3396.9,2.35508]
[1722248547466,2.4487,3397.5,3396.9,2.35508]
[1722248547665,2.75708169,3397.5,3396.9,2.35508]
[1722248548538,2.75708169,3397.5,3397.0,2.35501]
[1722248550052,2.75708169,3397.5,3396.8,2.3551]
[1722248550254,1.063,3397.4,3396.8,2.35509]
[1722248550565,3.19918728,3397.5,3396.9,2.41395005]
[1722248550763,0.30838169,3397.5,3397.1,2.3549]
[1722248550968,0.30838169,3397.5,3397.0,1.063]
[1722248551134,0.30838169,3397.5,3397.4,2.35474]
[1722248552566,0.30838169,3397.5,3397.3,0.05886423]
[1722248552866,0.30838169,3397.5,3397.2,2.35482]
[1722248555772,0.30838169,3397.5,3397.3,0.05886394]
[1722248558981,0.30838169,3397.5,3397.2,2.35481]
[1722248559189,0.30838169,3397.5,3397.3,0.235481]
[1722248559685,0.30838169,3397.5,3396.9,2.35503]
[1722248560187,0.30838169,3397.5,3396.7,4.68401]
[1722248560188,4.66347,3397.8,3397.0,2.35501]
[1722248560546,4.66347,3397.8,3396.8,2.35511]
[1722248560952,2.3546,3397.6,3396.9,2.35508]
[1722248561153,4.66347,3397.8,3396.9,2.35508]
[1722248561390,2.35454,3397.7,3396.9,2.35508]
[1722248561574,2.35454,3397.7,3397.0,2.35501]
[1722248562090,2.3546,3397.6,3396.8,2.3551]
[1722248562695,6.20181226,3397.8,3396.9,2.35508]
[1722248564863,1.54142248,3397.5,3396.7,2.35518]
[1722248565071,1.54142248,3397.4,3396.7,2.35518]
[1722248565362,1.54142248,3397.4,3396.6,7.29]
[1722248565363,2.3549,3397.2,3396.6,7.29]
[1722248565557,3.89632248,3397.2,3396.6,7.29]
[1722248565754,2.3549,3397.2,3396.6,7.29]
[1722248566058,3.89786531,3397.2,3396.6,7.29]
[1722248566254,1.54296531,3397.2,3396.6,7.29]
[1722248566458,1.54296531,3397.2,3396.6,9.64529]
[1722248566656,6.30681531,3397.3,3396.6,7.29]
[1722248566875,1.54296531,3397.2,3396.6,7.29]
[1722248567889,1.54296531,3397.1,3396.6,7.29]
[1722248568362,1.54296531,3397.0,3396.6,7.29]
[1722248568889,1.54296531,3397.0,3396.6,9.64527]
[1722248569095,1.54375838,3397.0,3396.6,9.64527]
[1722248569725,1.54375838,3397.0,3396.8,2.35515]
[1722248570004,1.54375838,3397.1,3396.8,2.35515]
[1722248570174,1.54375838,3397.0,3396.6,9.64527]
[1722248570375,1.54375838,3396.9,3396.6,9.64527]
[1722248570581,1.54375838,3396.9,3396.7,2.35521]
[1722248571400,1.54375838,3396.9,3396.6,2.35527]
[1722248572501,1.54518589,3396.9,3396.6,2.35527]
[1722248572901,1.54525823,3396.9,3396.6,2.35527]
[1722248574002,1.54525823,3396.9,3396.7,2.3552]
[1722248574204,1.54525823,3396.9,3396.5,2.35532]
[1722248574405,1.54525823,3396.8,3396.6,2.35524]
[1722248575100,1.54586004,3396.8,3396.6,2.35524]
[1722248575654,1.54597621,3396.8,3396.6,2.35524]
[1722248577833,1.54597621,3396.8,3396.5,2.35536]
[1722248577997,1.54597621,3396.8,3396.3,4.83208]
[1722248578334,1.54597621,3396.7,3396.4,2.35542]
[1722248578915,1.54602725,3396.7,3396.4,2.35542]
[1722248579230,1.54602725,3396.7,3396.5,2.35536]
[1722248579433,1.54602725,3396.7,3396.1,7.29]
[1722248579434,3.99972725,3396.7,3396.1,7.29]
[1722248579710,1.54602725,3396.2,3396.1,7.29]
[1722248579896,1.8552327,3396.5,3395.8,14.47582]
[1722248579897,1.8552327,3396.4,3396.0,2.35571]
[1722248580303,1.54596935,3396.1,3396.0,2.35571]
[1722248581319,1.54601722,3396.1,3396.0,2.35571]
[1722248581528,1.5462053,3396.1,3396.0,2.35571]
[1722248581691,3.5177,3396.7,3395.8,3.41979]
[1722248581892,1.54581726,3396.1,3395.8,3.41979]
[1722248582282,1.54581726,3396.2,3395.8,3.41979]
[1722248582478,1.54581726,3396.2,3396.0,2.35569]
[1722248583426,1.54581726,3396.3,3396.1,2.35564]
[1722248583926,1.54560603,3396.3,3396.1,2.35564]
[1722248584093,1.54560603,3396.2,3396.1,2.35564]
[1722248584294,1.54560603,3396.2,3395.8,3.41979]
[1722248584494,1.54557888,3396.3,3395.9,0.590289]
[1722248584727,1.54557888,3396.3,3396.0,1.064]
[1722248584960,1.54557888,3396.3,3396.2,5.88297]
[1722248585112,1.54557888,3396.6,3396.5,2.35536]
[1722248585301,1.54557888,3396.7,3396.6,2.35529]
[1722248585499,1.85392018,3396.9,3396.7,2.35522]
[1722248587001,1.85392018,3396.9,3396.6,3.5274]
[1722248587207,1.54557888,3396.8,3396.6,4.81869]
[1722248587613,0.3083413,3396.9,3396.6,4.81869]
[1722248587932,1.54501833,3396.8,3396.6,4.81869]
[1722248588101,1.54501833,3396.8,3396.6,2.35529]
[1722248588714,1.54501833,3396.8,3396.7,2.35522]
[1722248588913,1.54501833,3396.8,3396.7,2.945509]
[1722248589213,1.85335963,3396.9,3396.7,2.945509]
[1722248589830,0.3083413,3396.9,3396.8,3.41915]
[1722248590752,0.3083413,3396.9,3396.8,2.35515]
[1722248590953,0.3083413,3396.9,3396.6,2.35525]
[1722248591118,0.3083413,3396.9,3396.7,2.35521]
[1722248591325,0.3083413,3396.9,3396.6,2.35529]
[1722248591656,0.3083413,3396.9,3396.7,2.35522]
[1722248593051,0.3083413,3396.9,3396.4,3.4511]
[1722248593052,0.3083413,3396.9,3396.6,2.35529]
[1722248593776,0.3083413,3396.9,3396.7,2.35521]
[1722248594956,0.3083413,3396.9,3396.8,2.35515]
[1722248595526,0.3083413,3396.9,3396.8,8.19287]
[1722248595759,1.54488102,3397.3,3397.0,2.355]
[1722248596024,1.54488102,3397.3,3397.0,2.41386888]
[1722248596529,1.54488102,3397.2,3397.0,2.41386888]
[1722248596732,1.54488102,3397.3,3397.0,2.355]
[1722248597245,0.308306,3397.7,3397.1,2.35494]
[1722248597582,1.54468948,3397.3,3397.1,2.35494]
[1722248597922,1.54468948,3397.4,3397.1,2.35494]
[1722248598336,1.54468948,3397.3,3397.1,2.35494]
[1722248598552,1.54468948,3397.4,3397.1,2.35494]
[1722248599678,1.54468948,3397.4,3397.1,2.4138083]
[1722248600684,1.54477136,3397.4,3397.1,2.4138083]
[1722248601175,1.5447713,3397.4,3397.1,2.4138083]
[1722248601385,1.5447713,3397.4,3397.2,2.35488]
[1722248601594,1.5447713,3397.5,3397.2,2.35488]
[1722248601879,1.372306,3397.7,3397.2,2.35488]
[1722248601880,1.5447713,3397.4,3397.2,2.35488]
[1722248602873,1.5447713,3397.3,3397.2,2.35488]
[1722248603083,1.5447713,3397.4,3397.2,2.35488]
[1722248603907,1.372306,3397.7,3397.2,2.35488]
[1722248604196,1.5448513,3397.4,3397.2,2.35488]
[1722248605095,1.5448513,3397.5,3397.2,2.35488]
[1722248605790,1.5448513,3397.5,3397.4,2.35474]
[1722248606008,1.5448513,3397.5,3397.3,2.35481]
[1722248606165,1.5448513,3397.4,3397.1,2.3549]
[1722248606354,1.5448513,3397.4,3397.2,2.35487]
[1722248606797,1.5448513,3397.4,3397.1,2.35494]
[1722248607203,1.54484496,3397.4,3397.1,2.35494]
[1722248607972,1.54484496,3397.5,3397.1,2.35494]
[1722248608702,1.54484496,3397.5,3397.2,2.35487]
[1722248609558,1.372306,3397.7,3397.2,2.35487]
[1722248609706,1.54454968,3397.6,3397.2,2.35487]
[1722248609902,1.54454968,3397.5,3397.2,2.35487]
[1722248610104,1.54454968,3397.6,3397.2,2.35487]
[1722248610303,0.308306,3397.7,3397.4,2.35471]
[1722248610548,1.54445564,3397.6,3397.4,2.35471]
[1722248610754,1.54445564,3397.6,3397.2,2.35487]
[1722248611062,1.54439225,3397.5,3397.3,2.3548]
[1722248611209,1.54439225,3397.6,3397.3,2.3548]
[1722248611410,1.372306,3397.7,3397.3,2.3548]
[1722248611411,1.54439225,3397.5,3397.3,2.3548]
[1722248611647,1.54439225,3397.6,3397.3,2.3548]
[1722248612905,1.54419897,3397.6,3397.3,2.3548]
[1722248614145,1.54419897,3397.6,3397.4,2.35473]
[1722248615454,2.91650497,3397.7,3397.4,2.35473]
[1722248616037,1.85250497,3397.7,3397.6,2.3546]
[1722248616232,0.308306,3397.7,3397.6,2.3546]
[1722248616428,0.308306,3397.7,3397.6,2.41346006]
[1722248617229,0.308306,3397.7,3397.6,2.3546]
[1722248617429,0.308306,3397.7,3397.5,2.82289936]
[1722248617430,0.308306,3397.7,3397.5,0.46822936]
[1722248617875,0.308306,3397.7,3397.3,2.2687]
[1722248618074,0.308306,3397.7,3397.5,2.3546]
[1722248618287,0.308306,3397.7,3397.6,2.3546]
[1722248619853,0.308306,3397.7,3397.6,4.8278]
[1722248620188,0.308306,3397.7,3397.6,4.88665789]
[1722248622789,0.308306,3397.7,3397.6,2.53205789]
[1722248624147,0.308306,3397.7,3397.6,2.4732]
[1722248624691,0.308306,3397.7,3397.5,2.3546]
[1722248625247,0.308306,3397.7,3397.4,2.4933]
[1722248625449,0.308306,3397.7,3397.3,2.35476]
[1722248625809,0.308306,3397.7,3397.3,0.470972]
[1722248625942,1.372306,3397.7,3397.3,0.470972]
[1722248626863,1.372306,3397.7,3396.7,10.29]
[1722248626864,1.064,3397.5,3396.7,9.6356]
[1722248627185,1.064,3397.5,3396.9,2.35503]
[1722248627696,1.064,3397.5,3396.8,2.41394523]
[1722248627697,1.064,3397.5,3397.0,2.35501]
[1722248627854,1.064,3397.5,3397.1,2.35494]
[1722248628051,1.064,3397.5,3397.2,0.05886602]
[1722248628271,1.064,3397.5,3397.2,0.53574762]
[1722248628856,1.54260989,3397.6,3397.2,0.53574762]
[1722248629900,1.5440261,3397.6,3397.2,0.53574762]
[1722248630397,3.762006,3397.7,3397.2,0.53574762]